bitfinex-derivatives/quotes_BTCF0:USTF0_20230105
["timestamp","ask_amount","ask_price","bid_price","bid_amount"]
[1672912748934,0.0011,16806.0,16805.0,6.42326539]
[1672912749972,0.0011,16806.0,16805.0,5.82186539]
[1672912750182,0.0011,16806.0,16805.0,6.42326539]
[1672912752191,0.0011,16806.0,16805.0,6.20029035]
[1672912752401,0.0011,16806.0,16805.0,5.76324506]
[1672912752604,0.0011,16806.0,16805.0,5.89700719]
[1672912753032,0.0011,16806.0,16805.0,5.22633297]
[1672912753871,0.0011,16806.0,16805.0,5.31551336]
[1672912755444,0.0011,16806.0,16805.0,5.22633297]
[1672912756072,0.0011,16806.0,16805.0,5.89701009]
[1672912757127,0.0011,16806.0,16805.0,5.40468135]
[1672912757651,0.0011,16806.0,16805.0,5.22633297]
[1672912758288,0.0011,16806.0,16805.0,5.89701205]
[1672912758814,0.0011,16806.0,16805.0,5.29561254]
[1672912759025,0.0011,16806.0,16805.0,5.89701254]
[1672912759231,0.0011,16806.0,16805.0,5.22633297]
[1672912759760,0.0011,16806.0,16805.0,6.42326043]
[1672912761230,0.0011,16806.0,16805.0,6.42336224]
[1672912761543,0.0011,16806.0,16805.0,6.20032495]
[1672912763740,0.0011,16806.0,16805.0,5.59892495]
[1672912763950,0.0011,16806.0,16805.0,5.89962495]
[1672912764162,0.0011,16806.0,16805.0,6.20032495]
[1672912764894,0.0011,16806.0,16805.0,5.89962495]
[1672912765115,0.0011,16806.0,16805.0,6.20032495]
[1672912768793,0.0011,16806.0,16805.0,6.46813206]
[1672912769737,0.0001,16806.0,16805.0,6.46813206]
[1672912769942,0.412,16811.0,16805.0,6.82514656]
[1672912770158,0.312,16811.0,16810.0,0.8953]
[1672912770368,0.1,16811.0,16810.0,0.8953]
[1672912770569,0.1,16811.0,16810.0,0.98450758]
[1672912771106,0.4,16813.0,16811.0,0.1]
[1672912771308,0.4,16813.0,16812.0,0.3007]
[1672912772359,0.444,16813.0,16812.0,0.3127]
[1672912772990,0.444,16813.0,16812.0,0.3128]
[1672912773201,0.4441,16813.0,16812.0,0.3128]
[1672912774782,0.1441,16813.0,16812.0,0.3128]
[1672912779728,0.0441,16813.0,16812.0,0.3128]
[1672912780774,0.0371,16813.0,16812.0,0.9074]
[1672912781188,0.0371,16813.0,16812.0,0.9064]
[1672912782241,0.0371,16813.0,16812.0,0.9044]
[1672912782453,0.0371,16813.0,16812.0,1.12741895]
[1672912783200,0.0371,16813.0,16812.0,0.99360758]
[1672912783817,0.0381,16813.0,16812.0,0.99360758]
[1672912784132,0.0001,16813.0,16812.0,0.98460758]
[1672912784340,0.0391,16813.0,16812.0,0.98760758]
[1672912785504,0.0391,16813.0,16812.0,0.8984]
[1672912786552,0.0391,16813.0,16812.0,1.03221137]
[1672912786758,0.00887477,16813.0,16812.0,1.56890906]
[1672912786972,0.00887477,16813.0,16812.0,1.56880906]
[1672912787178,0.00887477,16813.0,16812.0,1.7020831]
[1672912787385,0.00887477,16813.0,16812.0,1.03157404]
[1672912787599,0.00887477,16813.0,16812.0,1.12047014]
[1672912787808,0.0001,16813.0,16812.0,1.0071961]
[1672912788015,0.0001,16813.0,16812.0,0.9184]
[1672912788232,0.0001,16813.0,16812.0,0.8954]
[1672912788445,0.0001,16813.0,16812.0,0.9904]
[1672912795489,0.0001,16813.0,16812.0,1.2911]
[1672912799383,0.0001,16813.0,16812.0,1.3798961]
[1672912801065,0.0001,16813.0,16812.0,1.51317014]
[1672912802741,0.0001,16813.0,16812.0,1.3798961]
[1672912803682,0.0001,16813.0,16812.0,1.2911]
[1672912804742,0.0001,16813.0,16812.0,1.3798961]
[1672912804954,0.0001,16813.0,16812.0,1.2911]
[1672912812416,0.0001,16813.0,16812.0,5.28317014]
[1672912813048,0.0001,16813.0,16812.0,5.19437404]
[1672912813257,0.0001,16813.0,16812.0,5.28333104]
[1672912813475,0.0001,16813.0,16812.0,5.19437404]
[1672912814421,0.0001,16813.0,16812.0,5.73164751]
[1672912814842,0.0001,16813.0,16812.0,5.86512487]
[1672912815367,0.0001,16813.0,16812.0,5.73164751]
[1672912815573,0.0001,16813.0,16812.0,5.13024751]
[1672912815785,0.0001,16813.0,16812.0,5.73164751]
[1672912818108,0.0001,16813.0,16812.0,5.95466645]
[1672912818841,0.0001,16813.0,16812.0,5.77625129]
[1672912819791,0.0001,16813.0,16812.0,6.39140366]
[1672912824417,0.0001,16813.0,16812.0,5.77625129]
[1672912826826,0.0001,16813.0,16812.0,6.39141632]
[1672912827045,0.0001,16813.0,16812.0,5.77625129]
[1672912827468,0.0001,16813.0,16812.0,5.86528465]
[1672912828091,0.0001,16813.0,16812.0,5.73154795]
[1672912828303,0.0001,16813.0,16812.0,5.865285]
[1672912828517,0.0001,16813.0,16812.0,5.19483705]
[1672912829144,0.0001,16813.0,16812.0,5.86528986]
[1672912829354,0.0001,16813.0,16812.0,5.86528469]
[1672912830951,0.0001,16813.0,16812.0,5.19484264]
[1672912831255,0.0001,16813.0,16812.0,5.86529524]
[1672912831680,0.0001,16813.0,16812.0,5.37315824]
[1672912832201,0.0001,16813.0,16812.0,5.19484264]
[1672912832411,0.0001,16813.0,16812.0,5.37315824]
[1672912832832,0.0001,16813.0,16812.0,5.86529534]
[1672912833046,0.0001,16813.0,16812.0,5.7315527]
[1672912834516,0.0001,16813.0,16812.0,5.86528479]
[1672912834726,0.0001,16813.0,16812.0,5.37314769]
[1672912834937,0.0001,16813.0,16812.0,6.39140766]
[1672912835355,0.0001,16813.0,16812.0,5.77624784]
[1672912837561,0.0001,16813.0,16812.0,5.77614434]
[1672912837773,0.0001,16813.0,16812.0,5.5531254]
[1672912837982,0.0001,16813.0,16812.0,5.77614434]
[1672912840296,0.0001,16813.0,16812.0,5.5531254]
[1672912841132,0.0001,16813.0,16812.0,5.77614434]
[1672912842506,0.0001,16813.0,16812.0,5.1947604]
[1672912847750,0.0001,16813.0,16812.0,5.28393615]
[1672912849858,0.0001,16813.0,16812.0,5.23934837]
[1672912850177,0.0001,16813.0,16812.0,5.73148485]
[1672912850376,0.0001,16813.0,16812.0,5.95450379]
[1672912850798,0.0001,16813.0,16812.0,5.77615192]
[1672912851536,0.0001,16813.0,16812.0,5.95451549]
[1672912851745,0.0001,16813.0,16812.0,5.35311549]
[1672912851961,0.0001,16813.0,16812.0,5.95451549]
[1672912852388,0.0001,16813.0,16812.0,5.77615192]
[1672912854596,0.0001,16813.0,16812.0,5.17475192]
[1672912854807,0.0001,16813.0,16812.0,5.77615192]
[1672912855018,0.0001,16813.0,16812.0,5.17475192]
[1672912855229,0.0001,16813.0,16812.0,5.77615192]
[1672912856392,0.0001,16813.0,16812.0,6.37615192]
[1672912856807,0.0001,16813.0,16812.0,5.77615192]
[1672912857539,0.0001,16813.0,16812.0,5.28396189]
[1672912857962,0.0001,16813.0,16812.0,4.98326189]
[1672912858168,0.0001,16813.0,16812.0,5.28396189]
[1672912859440,0.0001,16813.0,16812.0,5.15018266]
[1672912861329,0.0001,16813.0,16812.0,5.28396189]
[1672912863746,0.0001,16813.0,16812.0,5.15018266]
[1672912864906,0.0001,16813.0,16812.0,5.95452959]
[1672912865320,0.0001,16813.0,16812.0,5.73151065]
[1672912866681,0.0001,16813.0,16812.0,5.86530656]
[1672912866893,0.0001,16813.0,16812.0,5.37316472]
[1672912867101,0.0001,16813.0,16812.0,5.86532684]
[1672912867312,0.0001,16813.0,16812.0,5.19479241]
[1672912870364,0.0001,16813.0,16812.0,5.28396087]
[1672912871206,0.0001,16813.0,16812.0,5.15016496]
[1672912872040,0.0001,16813.0,16812.0,1.38016496]
[1672912872680,0.0001,16813.0,16812.0,5.0609965]
[1672912877516,0.0001,16813.0,16812.0,4.7602965]
[1672912879508,0.0001,16813.0,16812.0,4.4595965]
[1672912879721,0.0001,16813.0,16812.0,4.7602965]
[1672912879931,0.0001,16813.0,16812.0,4.84946496]
[1672912882555,0.0001,16813.0,16812.0,4.54876496]
[1672912882766,0.0001,16813.0,16812.0,4.84946496]
[1672912883719,0.0001,16813.0,16812.0,4.54876496]
[1672912883929,0.0001,16813.0,16812.0,4.84946496]
[1672912887496,0.0001,16813.0,16812.0,4.7602965]
[1672912888555,0.0001,16813.0,16812.0,5.0609965]
[1672912888769,0.0001,16813.0,16812.0,4.4595965]
[1672912888970,0.0001,16813.0,16812.0,5.0609965]
[1672912889392,0.0001,16813.0,16812.0,4.7602965]
[1672912889612,0.0001,16813.0,16812.0,5.0609965]
[1672912891075,0.0001,16813.0,16812.0,5.06089139]
[1672912894964,0.0001,16813.0,16812.0,5.15005985]
[1672912896010,0.0001,16813.0,16812.0,5.28385576]
[1672912898432,0.0001,16813.0,16812.0,5.1946873]
[1672912898647,0.0001,16813.0,16812.0,5.28387034]
[1672912901266,0.0001,16813.0,16812.0,5.1946873]
[1672912902427,0.0001,16813.0,16812.0,5.28387763]
[1672912906527,0.0001,16813.0,16812.0,5.1946873]
[1672912909564,0.0001,16813.0,16812.0,5.86522817]
[1672912910102,0.0001,16813.0,16812.0,5.06089139]
[1672912910307,0.0001,16813.0,16812.0,5.15009555]
[1672912910519,0.0001,16813.0,16812.0,5.06089139]
[1672912915359,0.0001,16813.0,16812.0,5.66089139]
[1672912917456,0.0001,16813.0,16812.0,5.7946873]
[1672912917668,0.0001,16813.0,16812.0,5.97305961]
[1672912917882,0.0001,16813.0,16812.0,5.7946873]
[1672912921665,0.0001,16813.0,16812.0,5.88388725]
[1672912921863,0.0001,16813.0,16812.0,5.7946873]
[1672912922075,0.0001,16813.0,16812.0,5.1946873]
[1672912925012,0.0001,16813.0,16812.0,4.45949139]
[1672912925228,0.0001,16813.0,16812.0,5.06089139]
[1672912931117,0.0001,16813.0,16812.0,5.66089139]
[1672912932691,0.0001,16813.0,16812.0,5.7946873]
[1672912935202,0.0001,16813.0,16812.0,6.33140482]
[1672912935413,0.0001,16813.0,16812.0,6.37605145]
[1672912936054,0.0001,16813.0,16812.0,6.55425504]
[1672912936268,0.0001,16813.0,16812.0,6.37605145]
[1672912937425,0.0001,16813.0,16812.0,6.99118273]
[1672912937835,0.0001,16813.0,16812.0,6.37605145]
[1672912938258,0.0001,16813.0,16812.0,6.99117237]
[1672912939839,0.0001,16813.0,16812.0,6.37605145]
[1672912940678,0.0001,16813.0,16812.0,6.99117469]
[1672912944992,0.0001,16813.0,16812.0,6.37605145]
[1672912945624,0.0001,16813.0,16812.0,6.99116005]
[1672912945836,0.0001,16813.0,16812.0,5.77450626]
[1672912946150,0.0001,16813.0,16812.0,6.37590626]
[1672912946674,0.0001,16813.0,16812.0,6.99101446]
[1672912947306,0.0001,16813.0,16812.0,6.37590626]
[1672912947518,0.0001,16813.0,16812.0,5.79421068]
[1672912950141,0.0001,16813.0,16812.0,5.88317564]
[1672912954976,0.0001,16813.0,16812.0,6.37585386]
[1672912956979,0.0001,16813.0,16812.0,6.99096678]
[1672912957814,0.0001,16813.0,16812.0,6.99096765]
[1672912958138,0.0001,16813.0,16812.0,6.37585386]
[1672912959076,0.0001,16813.0,16812.0,6.55383668]
[1672912959501,0.0001,16813.0,16812.0,6.37585386]
[1672912960340,0.0001,16813.0,16812.0,6.99097023]
[1672912962554,0.0001,16813.0,16812.0,5.79423942]
[1672912964754,0.0001,16813.0,16812.0,5.49353942]
[1672912964970,0.0001,16813.0,16812.0,5.79423942]
[1672912966122,0.0001,16813.0,16812.0,6.33082502]
[1672912969702,0.0001,16813.0,16812.0,6.55384396]
[1672912970115,0.0001,16813.0,16812.0,7.03554821]
[1672912975265,0.280924,16818.0,16813.0,0.1]
[1672912975579,0.251279,16818.0,16817.0,1.37418863]
[1672912975798,0.6167,16821.0,16817.0,1.32953521]
[1672912976009,0.3,16821.0,16820.0,0.3007]
[1672912977903,0.301,16821.0,16820.0,0.3107]
[1672912978422,0.301,16821.0,16820.0,0.3108]
[1672912978638,0.3011,16821.0,16820.0,0.3108]
[1672912979588,0.3011,16821.0,16820.0,0.0101]
[1672912991990,0.4011,16821.0,16820.0,0.0101]
[1672912998510,0.1011,16821.0,16820.0,0.0101]
[1672913000924,0.00086203,16821.0,16820.0,0.0101]
[1672913001133,0.00086203,16821.0,16820.0,0.3108]
[1672913001345,0.00086203,16821.0,16820.0,0.4108]
[1672913002929,0.0011,16821.0,16820.0,0.4098]
[1672913007764,0.0011,16821.0,16820.0,0.1091]
[1672913007966,0.0011,16821.0,16820.0,0.7105]
[1672913021534,0.0011,16821.0,16820.0,1.3051]
[1672913031623,0.0011,16821.0,16820.0,1.0044]
[1672913031838,0.0011,16821.0,16820.0,0.7105]
[1672913040043,0.0011,16821.0,16820.0,0.79952659]
[1672913040253,0.0011,16821.0,16820.0,0.7105]
[1672913040687,0.0011,16821.0,16820.0,0.79952659]
[1672913040993,0.0011,16821.0,16820.0,0.7105]
[1672913042989,0.0011,16821.0,16820.0,0.79952659]
[1672913044888,0.0011,16821.0,16820.0,1.39412659]
[1672913045096,0.0011,16821.0,16820.0,1.3051]
[1672913047617,0.0011,16821.0,16820.0,1.3021]
[1672913051503,0.0011,16821.0,16820.0,0.7007]
[1672913051718,0.0011,16821.0,16820.0,1.3021]
[1672913052559,0.0011,16821.0,16820.0,1.39112659]
[1672913054143,0.0011,16821.0,16820.0,1.3021]
[1672913054451,0.0011,16821.0,16820.0,1.3018713]
[1672913058232,0.0011,16821.0,16820.0,1.39089789]
[1672913058438,0.0011,16821.0,16820.0,1.3018713]
[1672913059184,0.0011,16821.0,16820.0,1.39089789]
[1672913059396,0.0011,16821.0,16820.0,1.3018713]
[1672913061703,0.0011,16821.0,16820.0,0.1058713]
[1672913062331,0.0011,16821.0,16820.0,0.7072713]
[1672913063491,0.0011,16821.0,16820.0,0.1058713]
[1672913063708,0.0011,16821.0,16820.0,0.7072713]
[1672913064023,0.0011,16821.0,16820.0,0.1058713]
[1672913064227,0.0011,16821.0,16820.0,0.7072713]
[1672913065913,0.0011,16821.0,16820.0,0.1058713]
[1672913066229,0.0011,16821.0,16820.0,0.7072713]
[1672913067594,0.0011,16821.0,16820.0,0.9298331]
[1672913068002,0.0011,16821.0,16820.0,0.84080651]
[1672913068216,0.0011,16821.0,16820.0,0.92990956]
[1672913068850,0.0011,16821.0,16820.0,0.62920956]
[1672913069071,0.0011,16821.0,16820.0,0.92990956]
[1672913069267,0.0011,16821.0,16820.0,0.84080651]
[1672913069478,0.0011,16821.0,16820.0,0.92990566]
[1672913070531,0.0011,16821.0,16820.0,0.84080651]
[1672913071473,0.0011,16821.0,16820.0,1.51090914]
[1672913072008,0.0011,16821.0,16820.0,0.84080651]
[1672913072634,0.0011,16821.0,16820.0,1.43540651]
[1672913072848,0.0011,16821.0,16820.0,1.61359514]
[1672913073172,0.0011,16821.0,16820.0,1.43540651]
[1672913073900,0.0011,16821.0,16820.0,1.61359514]
[1672913074429,0.0011,16821.0,16820.0,1.43540651]
[1672913075160,0.0011,16821.0,16820.0,1.3018713]
[1672913078425,0.0011,16821.0,16820.0,5.0718713]
[1672913079571,0.0011,16821.0,16820.0,5.0658713]
[1672913082623,0.0011,16821.0,16820.0,5.19940651]
[1672913082833,0.0011,16821.0,16820.0,5.73596236]
[1672913083675,0.0011,16821.0,16820.0,5.37771264]
[1672913083886,0.0011,16821.0,16820.0,5.19952401]
[1672913087040,0.0011,16821.0,16820.0,5.28863121]
[1672913087257,0.0011,16821.0,16820.0,1.3849785]
[1672913088305,0.0011,16821.0,16820.0,0.7903785]
[1672913088516,0.0011,16821.0,16820.0,0.7012713]
[1672913088727,0.0011,16821.0,16820.0,0.7903785]
[1672913089354,0.0011,16821.0,16820.0,0.7012713]
[1672913094717,0.0011,16821.0,16820.0,0.4005713]
[1672913097670,0.0011,16821.0,16820.0,0.4896785]
[1672913098715,0.0011,16821.0,16820.0,0.1889785]
[1672913098926,0.0011,16821.0,16820.0,0.7903785]
[1672913099976,0.0011,16821.0,16820.0,0.92403121]
[1672913100602,0.0011,16821.0,16820.0,0.9240033]
[1672913100812,0.0011,16821.0,16820.0,0.83492401]
[1672913101232,0.0011,16821.0,16820.0,0.9239289]
[1672913101447,0.0011,16821.0,16820.0,0.83485099]
[1672913102301,0.0011,16821.0,16820.0,1.51852804]
[1672913102605,0.0011,16821.0,16820.0,1.51852758]
[1672913102817,0.0011,16821.0,16820.0,1.42945099]
[1672913103440,0.0011,16821.0,16820.0,1.51852859]
[1672913105540,0.0011,16821.0,16820.0,2.18862787]
[1672913106387,0.0011,16821.0,16820.0,2.05497516]
[1672913108915,0.0011,16821.0,16820.0,2.18857032]
[1672913109231,0.0011,16821.0,16820.0,2.18856624]
[1672913109640,0.0011,16821.0,16820.0,2.18856593]
[1672913111326,0.0011,16821.0,16820.0,2.18855748]
[1672913111537,0.0011,16821.0,16820.0,2.05497485]
[1672913111953,0.0011,16821.0,16820.0,2.18855821]
[1672913112594,0.0011,16821.0,16820.0,1.38487588]
[1672913113848,0.0011,16821.0,16820.0,1.47393103]
[1672913114901,0.0011,16821.0,16820.0,1.60751439]
[1672913115112,0.0011,16821.0,16820.0,1.47393103]
[1672913115326,0.0011,16821.0,16820.0,1.60751439]
[1672913115749,0.0011,16821.0,16820.0,1.51845924]
[1672913116065,0.0011,16821.0,16820.0,1.6074709]
[1672913117105,0.0001,16821.0,16820.0,1.49288754]
[1672913118385,0.0001,16821.0,16820.0,1.6264709]
[1672913118591,0.0001,16821.0,16820.0,1.49288754]
[1672913120166,0.0001,16821.0,16820.0,2.29666405]
[1672913120593,0.0001,16821.0,16820.0,2.07392827]
[1672913120789,0.0001,16821.0,16820.0,2.29666405]
[1672913121003,0.0001,16821.0,16820.0,2.07392827]
[1672913122158,0.0001,16821.0,16820.0,2.29666405]
[1672913123105,0.0001,16821.0,16820.0,2.07392827]
[1672913127829,0.0001,16821.0,16820.0,1.49283618]
[1672913134031,0.0001,16821.0,16820.0,0.89143618]
[1672913134242,0.0001,16821.0,16820.0,1.49283618]
[1672913135191,0.0001,16821.0,16820.0,2.11847491]
[1672913137075,0.0001,16821.0,16820.0,2.29645406]
[1672913137919,0.0001,16821.0,16820.0,2.11847491]
[1672913139291,0.0001,16821.0,16820.0,2.07376099]
[1672913140024,0.0001,16821.0,16820.0,2.29649677]
[1672913140234,0.0001,16821.0,16820.0,2.07376099]
[1672913140444,0.0001,16821.0,16820.0,2.29649677]
[1672913143910,0.0001,16821.0,16820.0,2.11847491]
[1672913144330,0.0001,16821.0,16820.0,2.29656736]
[1672913145165,0.0001,16821.0,16820.0,2.07383158]
[1672913145915,0.0001,16821.0,16820.0,5.84383158]
[1672913149372,0.0001,16821.0,16820.0,5.84366843]
[1672913150325,0.0001,16821.0,16820.0,5.26278534]
[1672913150534,0.0001,16821.0,16820.0,5.39639426]
[1672913151586,0.0001,16821.0,16820.0,5.26278534]
[1672913152529,0.0001,16821.0,16820.0,5.17371273]
[1672913157685,0.0001,16821.0,16820.0,5.30732165]
[1672913159144,0.0001,16821.0,16820.0,5.39637144]
[1672913159359,0.0001,16821.0,16820.0,5.30732165]
[1672913160943,0.0001,16821.0,16820.0,5.39637539]
[1672913161262,0.0001,16821.0,16820.0,5.26276647]
[1672913161459,0.0001,16821.0,16820.0,5.39637539]
[1672913161881,0.0001,16821.0,16820.0,4.80177539]
[1672913162508,0.0001,16821.0,16820.0,4.66816647]
[1672913162726,0.0001,16821.0,16820.0,4.80177539]
[1672913163150,0.0001,16821.0,16820.0,5.39637539]
[1672913164306,0.0001,16821.0,16820.0,5.26276647]
[1672913165040,0.0001,16821.0,16820.0,4.57231273]
[1672913165253,0.0001,16821.0,16820.0,5.17371273]
[1672913167982,0.0001,16821.0,16820.0,4.57231273]
[1672913168193,0.0001,16821.0,16820.0,5.17371273]
[1672913172611,0.0001,16821.0,16820.0,5.26276647]
[1672913174183,0.0001,16821.0,16820.0,1.49276647]
[1672913175334,0.0001,16821.0,16820.0,0.89816647]
[1672913175548,0.0001,16821.0,16820.0,0.59746647]
[1672913177340,0.0001,16821.0,16820.0,0.50838887]
[1672913178286,0.0001,16821.0,16820.0,1.10298887]
[1672913178497,0.0001,16821.0,16820.0,0.50838887]
[1672913180175,0.0001,16821.0,16820.0,0.41933513]
[1672913187749,0.0001,16821.0,16820.0,0.64199779]
[1672913187953,0.0001,16821.0,16820.0,0.34129779]
[1672913188164,0.0001,16821.0,16820.0,0.94269779]
[1672913189110,0.0001,16821.0,16820.0,0.85364405]
[1672913189837,0.0001,16821.0,16820.0,0.94272309]
[1672913190483,0.0001,16821.0,16820.0,0.85364405]
[1672913192466,0.0001,16821.0,16820.0,4.62364405]
[1672913193211,0.0001,16821.0,16820.0,4.8017365]
[1672913193632,0.0001,16821.0,16820.0,4.62364405]
[1672913195097,0.0001,16821.0,16820.0,4.49003513]
[1672913196990,0.0001,16821.0,16820.0,4.48992823]
[1672913202562,0.0001,16821.0,16820.0,4.55853097]
[1672913203189,0.0001,16821.0,16820.0,5.15993097]
[1672913205823,0.0001,16821.0,16820.0,4.55853097]
[1672913206346,0.0001,16821.0,16820.0,5.15993097]
[1672913207075,0.0001,16821.0,16820.0,4.55853097]
[1672913207292,0.0001,16821.0,16820.0,5.15993097]
[1672913208442,0.0001,16821.0,16820.0,4.55853097]
[1672913208654,0.0001,16821.0,16820.0,5.15993097]
[1672913210238,0.0001,16821.0,16820.0,4.71265534]
[1672913211703,0.0001,16821.0,16820.0,4.41195534]
[1672913211926,0.0001,16821.0,16820.0,4.71265534]
[1672913215064,0.0001,16821.0,16820.0,4.41195534]
[1672913215271,0.0001,16821.0,16820.0,4.71265534]
[1672913215693,0.0001,16821.0,16820.0,4.57901907]
[1672913217697,0.0001,16821.0,16820.0,5.15993979]
[1672913219485,0.0001,16821.0,16820.0,4.55853979]
[1672913219695,0.0001,16821.0,16820.0,5.15993979]
[1672913221582,0.0001,16821.0,16820.0,4.55853979]
[1672913221800,0.0001,16821.0,16820.0,5.15993979]
[1672913222328,0.0001,16821.0,16820.0,5.38267557]
[1672913222743,0.0001,16821.0,16820.0,5.38287658]
[1672913224743,0.0001,16821.0,16820.0,5.20458312]
[1672913225156,0.0001,16821.0,16820.0,4.62366812]
[1672913232636,0.0001,16821.0,16820.0,5.20457554]
[1672913233472,0.0001,16821.0,16820.0,5.59672388]
[1672913233994,0.0001,16821.0,16820.0,6.19672388]
[1672913234417,0.0001,16821.0,16820.0,6.19132388]
[1672913234939,0.0001,16821.0,16820.0,6.41416331]
[1672913236305,0.0001,16821.0,16820.0,5.79927919]
[1672913236725,0.0001,16821.0,16820.0,5.97757743]
[1672913239367,0.0001,16821.0,16820.0,5.754738]
[1672913240408,0.0001,16821.0,16820.0,5.97757743]
[1672913241250,0.0001,16821.0,16820.0,5.75460761]
[1672913244083,0.0001,16821.0,16820.0,5.15320761]
[1672913244297,0.0001,16821.0,16820.0,5.75460761]
[1672913244937,0.0001,16821.0,16820.0,5.15320761]
[1672913245255,0.0001,16821.0,16820.0,5.75460761]
[1672913245979,0.0001,16821.0,16820.0,5.97744704]
[1672913247242,0.0001,16821.0,16820.0,5.7991488]
[1672913247659,0.0001,16821.0,16820.0,5.21811504]
[1672913248081,0.0001,16821.0,16820.0,5.30726195]
[1672913255141,0.0001,16821.0,16820.0,5.75460871]
[1672913255343,0.0001,16821.0,16820.0,5.79915885]
[1672913256712,0.0001,16821.0,16820.0,6.41404649]
[1672913257128,0.0001,16821.0,16820.0,5.79915885]
[1672913257655,0.0001,16821.0,16820.0,6.41404551]
[1672913261119,0.0001,16821.0,16820.0,7.01404551]
[1672913262595,0.0001,16821.0,16820.0,6.35454868]
[1672913265649,0.0001,16821.0,16820.0,5.75454868]
[1672913267541,0.0001,16821.0,16820.0,5.39627309]
[1672913268592,0.0001,16821.0,16820.0,5.21804383]
[1672913270269,0.0001,16821.0,16820.0,5.79913567]
[1672913273742,0.0001,16821.0,16820.0,5.97734938]
[1672913277006,0.0001,16821.0,16820.0,5.37594938]
[1672913277221,0.0001,16821.0,16820.0,5.75450995]
[1672913277531,0.0001,16821.0,16820.0,5.15310995]
[1672913277852,0.0001,16821.0,16820.0,5.75450995]
[1672913281418,0.0001,16821.0,16820.0,5.57629624]
[1672913281626,0.0001,16821.0,16820.0,5.97734854]
[1672913282468,0.0001,16821.0,16820.0,5.37594854]
[1672913282676,0.0001,16821.0,16820.0,5.97734854]
[1672913284052,0.0001,16821.0,16820.0,5.79913567]
[1672913284474,0.0001,16821.0,16820.0,5.97735396]
[1672913284672,0.0001,16821.0,16820.0,2.20735396]
[1672913285316,0.0001,16821.0,16820.0,1.53717916]
[1672913285839,0.0001,16821.0,16820.0,1.44785497]
[1672913286364,0.0001,16821.0,16820.0,1.53696739]
[1672913288994,0.0001,16821.0,16820.0,1.44785497]
[1672913291617,0.0001,16821.0,16820.0,1.53697521]
[1672913292242,0.0001,16821.0,16820.0,1.44785497]
[1672913292770,0.0001,16821.0,16820.0,2.20718629]
[1672913292977,0.0001,16821.0,16820.0,1.90648629]
[1672913293185,0.0001,16821.0,16820.0,2.20718629]
[1672913294031,0.0001,16821.0,16820.0,2.02893318]
[1672913294243,0.0001,16821.0,16820.0,2.20720092]
[1672913295716,0.0001,16821.0,16820.0,2.27720092]
[1672913296139,0.4,16825.0,16821.0,0.10010375]
[1672913296350,0.4,16825.0,16822.0,0.48983738]
[1672913296559,0.4,16825.0,16823.0,0.1]
[1672913296985,0.4001,16825.0,16823.0,0.1]
[1672913297619,0.4,16825.0,16823.0,0.1]
[1672913297923,0.7007,16825.0,16823.0,0.1091]
[1672913298345,0.4001,16825.0,16823.0,0.1091]
[1672913298551,0.7008,16825.0,16823.0,0.1091]
[1672913299610,0.4001,16825.0,16823.0,0.1091]
[1672913322945,0.1001,16825.0,16823.0,0.1091]
[1672913326951,0.4008,16825.0,16823.0,0.1091]
[1672913328624,0.4008,16825.0,16823.0,0.0091]
[1672913333571,0.1001,16825.0,16823.0,0.0091]
[1672913333775,0.4008,16825.0,16823.0,0.0091]
[1672913333991,0.1001,16825.0,16823.0,0.0091]
[1672913334197,0.4008,16825.0,16823.0,0.0091]
[1672913335561,0.1001,16825.0,16823.0,0.0091]
[1672913335775,0.4008,16825.0,16823.0,0.0091]
[1672913335990,0.1001,16825.0,16823.0,0.0091]
[1672913336199,0.4008,16825.0,16823.0,0.0091]
[1672913337877,0.3007,16824.0,16823.0,0.0091]
[1672913338300,0.3007,16824.0,16823.0,0.009]
[1672913338833,0.3007,16824.0,16823.0,0.006]
[1672913339026,0.3007,16824.0,16823.0,0.0061]
[1672913339348,0.3008,16824.0,16823.0,0.0061]
[1672913340508,0.3008,16824.0,16823.0,0.00593547]
[1672913347134,0.6015,16824.0,16823.0,0.00593547]
[1672913353023,0.0001,16824.0,16823.0,0.00593547]
[1672913353331,0.4008,16824.0,16823.0,0.00593547]
[1672913355014,0.1001,16824.0,16823.0,0.00593547]
[1672913355226,0.4008,16824.0,16823.0,0.00593547]
[1672913355644,0.1001,16824.0,16823.0,0.00593547]
[1672913355849,0.4008,16824.0,16823.0,0.00593547]
[1672913357961,0.1001,16824.0,16823.0,0.00593547]
[1672913358169,0.4008,16824.0,16823.0,0.00593547]
[1672913358375,0.1001,16824.0,16823.0,0.00593547]
[1672913358589,0.4008,16824.0,16823.0,0.00593547]
[1672913360058,0.1001,16824.0,16823.0,0.00593547]
[1672913378149,0.1001,16824.0,16823.0,0.10593547]
[1672913386355,0.1001,16824.0,16823.0,0.10587429]
[1672913394877,0.0001,16824.0,16823.0,0.10587429]
[1672913400861,0.0001,16824.0,16822.0,0.30657429]
[1672913401081,0.0001,16824.0,16823.0,0.1]
[1672913412631,0.0001,16824.0,16823.0,0.4007]
[1672913413580,0.0001,16824.0,16823.0,0.48983738]
[1672913417471,0.0001,16824.0,16823.0,0.4007]
[1672913417886,0.0001,16824.0,16823.0,0.48983738]
[1672913420413,0.0001,16824.0,16823.0,0.4007]
[1672913423879,0.0001,16824.0,16823.0,0.7014]
[1672913424086,0.0061,16824.0,16823.0,0.1]
[1672913424298,0.0061,16824.0,16823.0,0.7014]
[1672913427865,0.0061,16824.0,16823.0,0.92424345]
[1672913428076,0.0061,16824.0,16823.0,0.92407979]
[1672913428294,0.0061,16824.0,16823.0,0.83510607]
[1672913428710,0.0061,16824.0,16823.0,0.92408001]
[1672913430820,0.0001,16824.0,16823.0,0.92408001]
[1672913431031,0.0001,16824.0,16823.0,0.85110607]
[1672913433759,0.0001,16824.0,16823.0,0.94011633]
[1672913433974,0.0001,16824.0,16823.0,0.80641026]
[1672913434596,0.0001,16824.0,16823.0,0.50571026]
[1672913434807,0.0001,16824.0,16823.0,0.94011633]
[1672913435438,0.0001,16824.0,16823.0,0.7174]
[1672913436074,0.0001,16824.0,16823.0,0.80641026]